bitfinex-derivatives/quotes_ETHF0:USTF0_20260112
["timestamp","ask_amount","ask_price","bid_price","bid_amount"]
[1768217189419,3.05300299,3122.6,3120.9,0.16041]
[1768217190113,3.05605274,3122.6,3120.9,0.16041]
[1768217190319,3.05300299,3122.4,3120.9,0.16041]
[1768217190623,3.05300299,3122.4,3121.0,1.924]
[1768217190923,3.05300299,3122.4,3120.9,0.16041]
[1768217191226,3.05300299,3122.4,3120.9,2.08441]
[1768217193922,3.05300299,3122.4,3121.0,1.928]
[1768217194327,3.06084917,3122.2,3121.0,1.928]
[1768217194727,3.06084917,3122.2,3120.9,0.16041]
[1768217195629,0.92554916,3122.1,3120.9,0.16041]
[1768217195931,3.06084917,3122.0,3120.9,0.16041]
[1768217196224,3.06389892,3122.6,3121.2,0.1604]
[1768217196432,0.92552509,3122.5,3121.2,0.1604]
[1768217196729,3.06389892,3122.6,3121.2,0.1604]
[1768217196931,0.92550592,3122.5,3121.2,0.1604]
[1768217197133,3.06389892,3122.6,3121.2,0.1604]
[1768217197433,0.92556448,3122.5,3121.2,0.1604]
[1768217197637,3.06389892,3122.6,3121.2,0.1604]
[1768217197825,0.92556283,3122.5,3121.2,0.1604]
[1768217198027,3.06389892,3122.6,3121.2,0.1604]
[1768217198732,3.06389892,3122.6,3121.3,0.16039]
[1768217198934,0.92588781,3122.5,3121.3,0.16039]
[1768217199133,3.06389892,3122.6,3121.3,0.16039]
[1768217199333,0.9262659,3122.5,3121.3,0.16039]
[1768217199630,3.06389892,3122.6,3121.3,0.16039]
[1768217199824,0.92627074,3122.5,3121.3,0.16039]
[1768217200020,3.06389892,3122.6,3121.3,0.16039]
[1768217200222,0.9265933,3122.5,3121.5,0.16038]
[1768217200419,0.00304975,3122.6,3121.5,0.16038]
[1768217200619,0.00304975,3122.6,3121.5,2.08738]
[1768217202137,0.92669235,3122.5,3121.5,2.08738]
[1768217202332,0.00304975,3122.6,3121.5,5.06962207]
[1768217202633,3.06084917,3123.3,3121.9,0.16036]
[1768217202834,0.9266263,3123.2,3122.0,0.16036]
[1768217203034,0.9266263,3123.1,3122.0,0.16036]
[1768217203338,3.06084917,3123.3,3122.0,0.16036]
[1768217203536,0.92627366,3123.2,3122.0,0.16036]
[1768217203731,0.92627366,3123.1,3122.0,0.16036]
[1768217203930,3.06316047,3123.3,3122.0,0.16036]
[1768217204231,3.06084917,3123.1,3122.0,0.16036]
[1768217204425,3.06084917,3122.9,3121.7,1.925]
[1768217205025,0.0023113,3123.3,3121.7,1.925]
[1768217205026,0.0023113,3123.3,3122.3,0.16034]
[1768217205231,0.0023113,3123.3,3122.3,0.16281809]
[1768217205741,3.06316047,3123.3,3122.3,0.00247809]
[1768217205941,6.0023113,3123.3,3121.5,20.4]
[1768217206131,3.06084917,3123.1,3121.4,2.08539]
[1768217206436,3.06084917,3122.9,3121.4,2.08539]
[1768217206939,3.06084917,3122.9,3121.4,0.1643243]
[1768217207140,3.06084917,3122.9,3121.5,1.925]
[1768217207852,3.06084917,3122.7,3121.4,2.0903243]
[1768217209440,3.06084917,3122.7,3121.4,0.1643243]
[1768217210735,3.06084917,3122.7,3121.4,0.0039343]
[1768217210935,3.06084917,3122.5,3121.4,0.0039343]
[1768217211941,3.06084917,3122.3,3121.4,0.0039343]
[1768217215044,3.06084917,3122.3,3120.9,0.16041]
[1768217215246,3.06084917,3122.1,3120.9,0.16041]
[1768217215444,0.0023113,3123.3,3120.9,0.16041]
[1768217215445,3.06084917,3121.9,3120.9,0.16041]
[1768217216147,3.06084917,3121.9,3120.9,0.16325651]
[1768217217348,0.92852159,3121.8,3120.9,0.16325651]
[1768217217543,3.06084917,3121.9,3120.9,0.16325651]
[1768217217754,0.92852157,3121.8,3120.9,0.16325651]
[1768217217948,3.06084917,3121.9,3120.9,0.00284651]
[1768217218251,3.06084917,3121.7,3120.9,0.00284651]
[1768217224256,4.15191573,3121.6,3120.9,0.00284651]
[1768217224556,3.22335735,3121.6,3120.9,0.00284651]
[1768217224858,3.22335735,3121.6,3120.5,0.16043]
[1768217225740,3.22335735,3121.6,3120.5,0.16300943]
[1768217225952,3.22335735,3121.4,3120.5,0.00257943]
[1768217226148,3.22335735,3121.2,3120.5,0.00257943]
[1768217227860,3.22335735,3121.2,3120.0,2.08046]
[1768217228052,0.92780724,3121.1,3120.0,0.16046]
[1768217228251,3.22335735,3121.0,3120.0,0.16046]
[1768217228751,3.22627537,3121.0,3120.0,0.16284071]
[1768217229453,3.22627537,3121.0,3120.0,0.00238071]
[1768217229649,3.22335735,3120.8,3119.4,0.16049]
[1768217230650,3.22335735,3120.8,3119.4,0.16448742]
[1768217230957,0.92681465,3120.7,3119.4,0.16448742]
[1768217231153,3.22335735,3120.6,3119.4,0.16448742]
[1768217237352,3.22335735,3120.6,3119.9,1.23470087]
[1768217237761,3.22335735,3120.6,3119.4,1.39918829]
[1768217237960,3.22335735,3120.6,3120.0,1.23470087]
[1768217238455,3.36933999,3121.0,3120.4,1.23470087]
[1768217238657,3.36642197,3120.8,3120.4,1.23470087]
[1768217240159,3.36642197,3120.8,3120.2,1.23470087]
[1768217241554,3.36642197,3120.8,3119.4,0.00399742]
[1768217241754,3.36642197,3120.6,3119.7,1.23470087]
[1768217242155,0.95335588,3120.5,3119.7,1.23470087]
[1768217242356,3.36642197,3120.6,3119.7,1.23470087]
[1768217243163,0.95343314,3120.5,3119.7,1.23470087]
[1768217243363,3.36642197,3120.6,3119.7,1.23470087]
[1768217244261,3.36642197,3120.4,3119.4,0.00399742]
[1768217244562,0.95361208,3120.3,3119.5,1.23470087]
[1768217244758,0.95361208,3120.2,3119.5,1.23470087]
[1768217244962,3.36642197,3120.4,3119.5,1.23470087]
[1768217245160,4.32003816,3120.3,3119.4,1.23470087]
[1768217245371,4.32003816,3120.2,3119.4,0.00409761]
[1768217245658,3.36642197,3120.2,3119.4,0.00409761]
[1768217245968,0.95600283,3120.1,3119.6,1.23470087]
[1768217246261,3.36642197,3120.2,3119.6,1.23470087]
[1768217246565,4.32240289,3120.1,3119.6,1.23470087]
[1768217246764,3.36642197,3120.1,3119.6,1.23470087]
[1768217247559,3.36642197,3120.8,3119.6,1.23470087]
[1768217247761,3.36642197,3120.6,3119.6,1.23470087]
[1768217247963,0.95602059,3120.5,3119.6,1.23470087]
[1768217248162,0.95602059,3120.4,3119.6,1.23470087]
[1768217248365,0.95602059,3120.3,3119.6,1.23470087]
[1768217248565,0.95602059,3120.2,3119.6,1.23470087]
[1768217248760,0.95602059,3120.1,3119.6,1.23470087]
[1768217249066,3.36642197,3120.6,3119.6,1.23470087]
[1768217249259,0.95612624,3120.5,3119.8,1.23470087]
[1768217249453,0.95612624,3120.4,3119.8,1.23470087]
[1768217249660,0.95612624,3120.3,3119.8,1.23470087]
[1768217249964,0.95612624,3120.2,3119.8,1.23470087]
[1768217250165,0.95612624,3120.1,3119.8,1.23470087]
[1768217250366,3.36642197,3120.6,3119.8,1.23470087]
[1768217250567,4.32284911,3120.5,3119.6,1.23470087]
[1768217250757,0.95642714,3120.4,3119.6,1.23470087]
[1768217256360,4.3511552,3120.4,3119.5,1.23470087]
[1768217256561,0.95642714,3120.3,3119.5,1.23470087]
[1768217257362,0.95642714,3120.3,3119.6,1.23470087]
[1768217258672,0.95642714,3120.3,3119.4,0.00409761]
[1768217258872,0.95642714,3120.3,3119.6,1.23470087]
[1768217259262,3.39472806,3120.2,3119.4,0.00409761]
[1768217259466,3.39472806,3120.0,3119.3,1.23470087]
[1768217259672,0.95642714,3119.9,3119.3,1.23470087]
[1768217260472,0.95642714,3119.9,3119.2,1.23470087]
[1768217260771,3.39472806,3119.8,3119.0,1.23470087]
[1768217260966,4.3511552,3119.7,3118.9,0.16052]
[1768217261166,0.95642714,3119.6,3119.2,1.23470087]
[1768217261666,0.95642714,3119.6,3119.2,1.23870628]
[1768217262977,3.39472806,3120.1,3119.2,1.23870628]
[1768217263178,3.39472806,3120.1,3119.4,1.23470087]
[1768217264069,3.39472806,3120.1,3119.2,1.23870628]
[1768217267981,3.39472806,3120.1,3119.2,0.00400541]
[1768217268280,3.39472806,3120.1,3119.2,1.23870628]
[1768217269679,3.39472806,3120.1,3119.2,0.00400541]
[1768217274988,4.35025998,3120.0,3119.2,0.00400541]
[1768217275188,0.95553192,3119.9,3119.2,0.00400541]
[1768217275396,0.95553192,3119.8,3119.2,0.00400541]
[1768217275685,0.95553192,3119.7,3119.2,0.00400541]
[1768217275887,0.95553192,3119.6,3119.2,0.00400541]
[1768217276083,3.39472806,3120.0,3119.2,1.23870628]
[1768217281183,3.39472806,3120.0,3119.2,0.00400541]
[1768217283288,3.39472806,3120.0,3118.4,0.16054]
[1768217283491,3.39472806,3119.9,3118.8,1.23470087]
[1768217284389,3.39472806,3119.9,3118.8,1.23786519]
[1768217286882,5.69210169,3119.9,3118.8,1.23786519]
[1768217287894,3.31483588,3119.8,3118.8,1.23786519]
[1768217288094,0.9833817,3119.7,3118.8,1.23786519]
[1768217288298,0.9833817,3119.6,3118.8,1.23786519]
[1768217288602,0.9833817,3119.5,3118.8,1.23786519]
[1768217288895,0.9833817,3119.4,3118.8,1.23786519]
[1768217289097,0.9833817,3119.3,3118.8,1.23786519]
[1768217289294,0.9833817,3119.2,3118.8,1.23786519]
[1768217289593,0.9833817,3119.1,3118.8,1.23786519]
[1768217289796,3.31483588,3119.6,3118.8,1.23786519]
[1768217289990,0.98369753,3119.5,3118.8,0.00316432]
[1768217290187,0.98369753,3119.4,3118.8,0.00316432]
[1768217290490,0.98369753,3119.3,3118.8,0.00316432]
[1768217290695,0.98369753,3119.2,3118.8,0.00316432]
[1768217290898,0.98369753,3119.1,3118.8,0.00316432]
[1768217291096,0.98369753,3119.0,3118.8,0.00316432]
[1768217291292,3.31483588,3119.6,3118.4,2.06454]
[1768217291498,0.98372545,3119.5,3118.4,2.06454]
[1768217291790,0.98372545,3119.4,3118.4,2.06454]
[1768217291997,0.98372545,3119.3,3118.4,2.06454]
[1768217292292,0.98372545,3119.2,3118.4,2.0669799]
[1768217292490,0.98372545,3119.1,3118.4,2.0669799]
[1768217292692,3.31483588,3119.6,3118.4,2.0669799]
[1768217292893,0.98368288,3119.5,3118.4,2.0669799]
[1768217293100,0.98368288,3119.4,3118.4,2.0669799]
[1768217293290,0.98368288,3119.3,3118.4,2.0669799]
[1768217293491,0.98368288,3119.2,3118.4,2.0669799]
[1768217293691,0.98368288,3119.1,3118.4,2.0669799]
[1768217293894,3.31483588,3119.6,3118.4,2.0669799]
[1768217294093,0.98366522,3119.5,3118.4,2.0669799]
[1768217294294,0.98366522,3119.4,3118.4,2.0669799]
[1768217294496,0.98366522,3119.3,3118.4,0.1629799]
[1768217294802,0.98366522,3119.2,3118.5,1.908]
[1768217294983,0.98366522,3119.1,3118.5,1.908]
[1768217295189,3.31483588,3119.6,3118.5,1.908]
[1768217295489,3.31483588,3119.6,3118.4,0.1629799]
[1768217295691,3.31483588,3119.6,3118.5,1.909]
[1768217299497,3.31483588,3119.6,3118.4,1.39853273]
[1768217299498,3.31483588,3119.6,3118.4,0.1629799]
[1768217299697,3.31483588,3119.6,3118.5,1.908]
[1768217299894,3.31483588,3119.6,3118.4,1.39853273]
[1768217300095,3.31483588,3119.6,3118.4,3.30653273]
[1768217301602,3.31483588,3119.6,3118.4,0.1629799]
[1768217301903,3.31483588,3119.6,3118.4,2.0709799]
[1768217303399,3.31483588,3119.6,3118.4,2.0719799]
[1768217303701,3.31483588,3119.6,3118.4,0.1629799]
[1768217303897,3.31483588,3119.6,3118.4,2.0719799]
[1768217307204,0.98227853,3119.5,3118.4,2.0719799]
[1768217307405,0.98227853,3119.4,3118.4,2.0719799]
[1768217307606,0.98227853,3119.3,3118.4,2.0719799]
[1768217307907,0.98227853,3119.2,3118.4,2.0719799]
[1768217308098,0.98227853,3119.1,3118.4,2.0719799]
[1768217308297,3.31483588,3119.6,3118.4,2.0719799]
[1768217308705,3.31483588,3119.6,3118.4,0.1629799]
[1768217309005,3.31483588,3119.6,3118.5,1.912]
[1768217317917,3.31483588,3119.6,3118.4,3.30853273]
[1768217318413,3.31483588,3119.6,3118.4,1.39853273]
[1768217318614,3.31483588,3119.6,3118.4,3.30853273]
[1768217320423,0.97869893,3119.5,3118.4,3.30853273]
[1768217320616,0.97869893,3119.4,3118.4,3.30853273]
[1768217320911,0.97869893,3119.3,3118.4,3.30853273]
[1768217321114,0.97869893,3119.2,3118.4,3.30853273]
[1768217321411,0.97869893,3119.1,3118.4,3.30853273]
[1768217321611,0.97869893,3119.0,3118.4,3.30853273]
[1768217321816,0.97869893,3118.9,3118.4,3.30853273]
[1768217322006,3.31483588,3119.6,3118.4,2.0729799]
[1768217322210,0.97867952,3119.5,3118.4,2.0729799]
[1768217322508,0.97867952,3119.4,3118.4,2.0729799]
[1768217322712,0.97867952,3119.3,3118.4,2.0729799]
[1768217322917,0.97867952,3119.2,3118.4,2.0739799]
[1768217323210,0.97867952,3119.1,3118.4,2.0739799]
[1768217323409,5.61220951,3119.6,3118.4,2.0739799]
[1768217323410,0.97867952,3119.0,3118.4,2.0739799]
[1768217323611,0.97867952,3118.9,3118.4,2.0739799]
[1768217323811,0.97867952,3118.8,3118.4,2.0739799]
[1768217324012,5.61220951,3119.6,3118.4,2.0739799]
[1768217324219,0.97851094,3119.5,3118.4,2.0739799]
[1768217324516,0.97851094,3119.4,3118.4,2.0739799]
[1768217324705,0.97851094,3119.3,3118.4,2.0739799]
[1768217324907,0.97851094,3119.2,3118.4,2.0739799]
[1768217325108,0.97851094,3119.1,3118.4,2.0739799]
[1768217325405,0.97851094,3119.0,3118.4,2.0739799]
[1768217325602,0.97851094,3118.9,3118.4,2.0739799]
[1768217325804,0.97851094,3118.8,3118.4,2.0739799]
[1768217326002,0.00281191,3119.3,3118.4,2.0769799]
[1768217326309,0.97843292,3119.2,3118.4,0.1629799]
[1768217326607,0.97843292,3119.1,3118.4,2.0779799]
[1768217326917,0.97843292,3119.0,3118.4,2.0779799]
[1768217327107,0.97843292,3118.9,3118.4,2.0779799]
[1768217327310,0.00281191,3119.3,3118.4,2.0779799]
[1768217327311,0.97843292,3118.8,3118.4,2.0779799]
[1768217327511,0.00281191,3119.3,3118.4,2.0779799]
[1768217327710,0.97837657,3119.2,3118.4,2.0779799]
[1768217327907,0.97837657,3119.1,3118.4,2.0779799]
[1768217328108,0.97837657,3119.0,3118.4,2.0789799]
[1768217328317,0.97837657,3118.9,3118.4,2.0789799]
[1768217328620,0.97837657,3118.8,3118.4,2.0789799]
[1768217328808,0.00281191,3119.3,3118.4,2.0789799]
[1768217329013,0.97836465,3119.2,3118.4,2.0789799]
[1768217329220,0.97836465,3119.1,3118.4,2.0789799]
[1768217329519,0.97836465,3119.0,3118.4,2.0789799]
[1768217329720,0.97836465,3118.9,3118.4,2.0789799]
[1768217329908,0.97836465,3118.8,3118.4,2.0789799]
[1768217330108,0.00281191,3119.3,3118.4,2.0789799]
[1768217330313,0.97835378,3119.2,3118.4,0.0024399]
[1768217330509,0.97835378,3119.1,3118.4,0.0024399]
[1768217330716,0.97835378,3119.0,3118.4,0.0024399]
[1768217330918,0.97835378,3118.9,3118.4,0.0024399]
[1768217331111,0.97835378,3118.8,3118.4,0.0024399]
[1768217331315,0.97835378,3118.7,3118.4,0.0024399]
[1768217331516,0.00281191,3119.3,3118.4,0.0024399]
[1768217331517,0.97835378,3118.6,3118.4,0.0024399]
[1768217331825,3.52940664,3119.3,3118.1,1.919]
[1768217332020,1.00443143,3119.2,3118.1,1.919]
[1768217332218,1.00443143,3119.1,3118.1,1.919]
[1768217332419,1.00443143,3119.0,3118.1,1.919]
[1768217332719,1.00443143,3118.9,3118.1,1.92242146]
[1768217332922,3.52940664,3119.3,3118.1,3.31852429]
[1768217333122,1.00430558,3119.2,3118.1,3.31852429]
[1768217333318,3.52940664,3119.3,3118.1,3.31852429]
[1768217338624,2.29737363,3119.6,3118.5,1.23555283]
[1768217338823,2.29737363,3119.9,3118.5,4.67884903]
[1768217339727,2.30137791,3119.9,3118.5,4.67884903]
[1768217340614,0.00400428,3119.9,3118.9,1.23555283]
[1768217340819,0.00400428,3119.9,3118.9,4.67884903]
[1768217341816,2.29737363,3120.5,3119.3,4.67884903]
[1768217342020,2.29737363,3120.6,3119.4,3.4432962]
[1768217342219,0.29191758,3120.5,3119.4,3.4432962]
[1768217342424,2.29737363,3120.6,3119.4,3.4432962]
[1768217342816,0.00256712,3120.6,3119.4,3.4432962]
[1768217345225,1.01522479,3120.5,3119.4,3.4432962]
[1768217345425,1.01522479,3120.4,3119.4,3.4432962]
[1768217345627,1.01522479,3120.3,3119.4,3.4432962]
[1768217345820,1.01522479,3120.2,3119.4,3.4432962]
[1768217346020,1.01522479,3120.1,3119.4,3.4432962]
[1768217346319,1.01522479,3120.0,3119.4,3.4432962]
[1768217346523,0.00256712,3120.6,3119.4,3.4432962]
[1768217351325,0.00256712,3120.6,3119.6,1.23485591]
[1768217351827,2.29994075,3120.6,3119.6,1.23485591]
[1768217354029,2.29994075,3120.6,3119.8,1.23485591]
[1768217355528,2.29994075,3120.6,3119.4,3.4432962]
[1768217355732,2.29994075,3120.6,3119.8,1.23485591]
[1768217356028,0.00256712,3120.6,3119.8,1.23485591]
[1768217358131,0.00256712,3120.6,3119.6,1.23485591]
[1768217358431,1.00460614,3120.5,3119.6,1.23485591]
[1768217358632,1.00460614,3120.4,3119.4,3.4432962]
[1768217358824,1.00460614,3120.3,3119.6,1.23485591]
[1768217359118,0.00256712,3120.6,3119.6,1.23485591]
[1768217359119,1.00460614,3120.2,3119.6,1.23485591]
[1768217359324,1.00460614,3120.1,3119.6,1.23485591]
[1768217359524,1.00460614,3120.0,3119.6,1.23485591]
[1768217359845,1.00460614,3119.9,3119.6,1.23485591]
[1768217360131,2.29994075,3120.6,3119.6,1.23485591]
[1768217360731,0.00256712,3120.6,3119.6,1.23485591]
[1768217361325,2.29994075,3120.6,3119.6,1.23485591]
[1768217361628,0.00256712,3120.6,3119.6,1.23485591]
[1768217361933,2.29994075,3120.6,3119.6,1.23485591]
[1768217363734,2.29994075,3120.6,3119.8,1.23485591]
[1768217363927,0.00256712,3120.6,3119.8,1.23485591]
[1768217364832,2.29737363,3120.8,3120.4,1.23485591]
[1768217365033,2.29737363,3121.1,3120.3,1.23485591]
[1768217365228,2.29737363,3121.1,3120.1,1.23485591]
[1768217365536,1.23485591,3120.8,3119.4,3.37148075]
[1768217365734,1.23485591,3120.8,3119.6,1.23485591]
[1768217365937,1.23733427,3120.8,3119.6,1.23820539]
[1768217366138,2.29985199,3120.8,3119.6,1.23820539]
[1768217367433,3.5347079,3120.8,3119.6,1.23820539]
[1768217367938,1.23485591,3120.6,3119.6,0.00334948]
[1768217369238,3.53222954,3120.6,3119.6,0.00334948]
[1768217369929,6.74527838,3120.6,3119.6,0.00334948]
[1768217370236,2.59307869,3120.5,3119.6,0.00334948]
[1768217370437,2.29737363,3120.5,3119.6,0.00334948]
[1768217371136,1.23485591,3120.3,3119.6,0.00334948]
[1768217371342,1.23485591,3120.3,3119.0,4.76684666]
[1768217371638,3.53222954,3120.3,3119.0,4.76684666]
[1768217371838,2.29737363,3120.3,3119.2,1.23485591]
[1768217372240,2.29737363,3120.1,3119.2,1.2380274]
[1768217372440,3.28951477,3120.1,3119.2,1.2380274]
[1768217372629,0.99214114,3120.0,3119.2,0.00317149]
[1768217372832,2.29737363,3120.1,3118.6,3.37148075]
[1768217372833,0.99214114,3119.9,3118.6,3.37148075]
[1768217373038,0.99214114,3119.8,3118.8,1.23485591]
[1768217373236,0.99214114,3119.7,3119.0,1.23485591]
[1768217373435,0.99214114,3119.6,3119.0,1.23485591]
[1768217373635,0.99214114,3119.5,3119.0,1.23485591]
[1768217373835,0.99214114,3119.4,3119.0,1.23485591]
[1768217374044,0.99214114,3119.3,3119.0,1.23860628]
[1768217374247,0.99214114,3119.2,3119.0,1.23860628]
[1768217374434,2.29737363,3120.1,3119.0,1.23860628]
[1768217374635,3.28903758,3120.1,3119.0,1.23860628]
[1768217374844,2.29737363,3120.0,3119.0,1.23860628]
[1768217375937,2.29737363,3119.9,3119.0,1.23860628]
[1768217376332,1.23485591,3119.5,3119.0,0.00375037]
[1768217376540,0.99166395,3119.4,3118.4,0.16054]
[1768217376746,0.99166395,3119.3,3118.1,1.23485591]
[1768217377046,0.99166395,3119.2,3118.3,1.23485591]
[1768217377239,0.99166395,3119.1,3118.3,1.23485591]
[1768217377438,0.99166395,3119.0,3118.3,1.23830941]
[1768217377638,0.99166395,3118.9,3118.3,1.23830941]
[1768217377944,0.99166395,3118.8,3118.4,3.20461796]
[1768217378138,2.29737363,3119.6,3118.4,3.20461796]
[1768217378336,3.29002388,3119.6,3118.4,3.20461796]
[1768217379236,0.99265025,3119.5,3118.4,3.20461796]
[1768217379545,0.99265025,3119.4,3118.4,3.20461796]
[1768217379846,0.99265025,3119.3,3118.4,3.20461796]
[1768217380049,0.99265025,3119.2,3118.4,3.20461796]
[1768217380245,0.99265025,3119.1,3118.4,3.20461796]
[1768217380450,0.99265025,3119.0,3118.4,3.20461796]
[1768217380648,0.99265025,3118.9,3118.4,3.20461796]
[1768217380946,6.44746706,3119.7,3118.4,3.20461796]
[1768217381146,0.99216098,3119.6,3118.4,3.20461796]
[1768217381447,0.99216098,3119.5,3118.4,3.20461796]
[1768217381642,0.99216098,3119.4,3118.4,3.20461796]
[1768217381838,0.99216098,3119.3,3118.4,3.20461796]
[1768217382035,0.99216098,3119.2,3118.4,3.20461796]
[1768217382246,0.99216098,3119.1,3118.4,3.20461796]
[1768217382446,0.99216098,3119.0,3118.4,3.20461796]
[1768217382650,0.99216098,3118.9,3118.4,3.20461796]
[1768217382849,6.44746706,3119.7,3118.4,3.20461796]
[1768217383149,0.99181164,3119.6,3118.4,3.20461796]
[1768217383349,0.99181164,3119.5,3118.4,4.43947387]
[1768217383650,0.99181164,3119.4,3118.4,4.43947387]
[1768217383948,0.99181164,3119.3,3118.4,3.20461796]
[1768217384140,0.99181164,3119.2,3118.4,3.20461796]
[1768217384340,0.99181164,3119.1,3118.4,3.20461796]
[1768217384552,0.99181164,3119.0,3118.4,3.20461796]
[1768217384747,0.99181164,3118.9,3118.4,3.20461796]
[1768217384950,1.23485591,3119.5,3118.4,3.20461796]
[1768217385147,0.99156264,3119.4,3118.4,3.20461796]
[1768217385340,0.99156264,3119.3,3118.4,3.20461796]
[1768217385549,0.99156264,3119.2,3118.4,3.20461796]
[1768217385849,0.99156264,3119.1,3118.4,3.20461796]
[1768217386047,1.23485591,3119.5,3118.4,3.20461796]
[1768217386253,0.99146872,3119.4,3118.4,3.20461796]
[1768217386547,0.99146872,3119.3,3118.4,3.20461796]
[1768217386743,0.99146872,3119.2,3118.4,3.20461796]
[1768217386951,0.99146872,3119.1,3118.4,3.20461796]
[1768217387149,1.23485591,3119.5,3118.4,3.20461796]
[1768217387353,0.99133628,3119.4,3118.4,3.20461796]
[1768217387545,0.99133628,3119.3,3118.4,3.20461796]
[1768217387741,0.99133628,3119.2,3118.4,3.20461796]
[1768217387939,0.99133628,3119.1,3118.4,3.20461796]
[1768217388143,1.23485591,3119.5,3118.4,3.20461796]
[1768217388344,0.9912955,3119.4,3118.4,3.20461796]
[1768217388551,0.9912955,3119.3,3118.4,3.20461796]
[1768217388754,0.9912955,3119.2,3118.4,3.20461796]
[1768217389050,0.9912955,3119.1,3118.4,3.20461796]
[1768217389250,1.23485591,3119.5,3118.4,3.20461796]
[1768217389438,0.99127076,3119.4,3118.4,3.20461796]
[1768217389644,0.99127076,3119.3,3118.4,3.20461796]
[1768217389954,0.99127076,3119.2,3118.4,3.20461796]
[1768217390151,0.99127076,3119.1,3118.4,3.20461796]
[1768217390351,4.15009343,3119.7,3118.4,3.20461796]
[1768217390551,0.9912612,3119.6,3118.4,3.20461796]
[1768217390750,0.9912612,3119.5,3118.4,3.20461796]
[1768217390953,0.9912612,3119.4,3118.4,3.20461796]
[1768217391256,0.9912612,3119.3,3118.4,3.20461796]
[1768217391453,0.9912612,3119.2,3118.4,3.20461796]
[1768217391650,0.9912612,3119.1,3118.4,3.20461796]
[1768217391958,4.15009343,3119.7,3118.4,3.20461796]
[1768217392255,0.99126896,3119.6,3118.4,3.20461796]
[1768217392453,0.99126896,3119.5,3118.4,3.20461796]
[1768217392655,0.99126896,3119.4,3118.4,3.20461796]
[1768217392855,0.99126896,3119.3,3118.4,3.20461796]
[1768217393054,0.99126896,3119.2,3118.4,3.20461796]
[1768217393253,0.99126896,3119.1,3118.4,3.20461796]
[1768217393450,4.15009343,3119.7,3118.4,3.20461796]
[1768217393754,0.99132624,3119.6,3118.4,3.20461796]
[1768217393956,0.99132624,3119.5,3118.4,3.20461796]
[1768217394157,0.99132624,3119.4,3118.4,3.20461796]
[1768217394353,0.99132624,3119.3,3118.4,3.20461796]
[1768217394657,0.99132624,3119.2,3118.4,3.20461796]
[1768217394956,0.99132624,3119.1,3118.4,3.20461796]
[1768217395254,4.15009343,3119.7,3118.4,3.20461796]
[1768217395458,0.99180144,3119.6,3118.4,3.20461796]
[1768217395654,0.99180144,3119.5,3118.4,3.20461796]
[1768217395856,0.99180144,3119.4,3118.4,3.20461796]
[1768217396055,0.99180144,3119.3,3118.4,3.20461796]
[1768217396256,0.99180144,3119.2,3118.5,1.23485591]
[1768217396458,0.99180144,3119.1,3118.5,1.23485591]
[1768217396655,0.99180144,3119.0,3118.6,3.20461796]
[1768217396956,1.23485591,3119.7,3118.6,3.20461796]
[1768217397155,0.99713412,3119.6,3118.6,3.20461796]
[1768217397456,0.99713412,3119.5,3118.6,3.20461796]
[1768217397655,0.99713412,3119.4,3118.6,3.20461796]
[1768217397849,0.99713412,3119.3,3118.6,3.20461796]
[1768217398049,0.99713412,3119.2,3118.6,3.20461796]
[1768217398249,0.99713412,3119.1,3118.6,3.20461796]
[1768217398453,0.99713412,3119.0,3118.6,3.20461796]
[1768217398759,1.23485591,3119.7,3118.6,3.20461796]
[1768217398952,0.99772044,3119.6,3118.6,3.20461796]
[1768217399147,0.99772044,3119.5,3118.6,3.20461796]
[1768217399353,0.99772044,3119.4,3118.6,3.20461796]
[1768217399656,0.99772044,3119.3,3118.6,3.20461796]
[1768217399854,0.99772044,3119.2,3118.6,3.20461796]
[1768217400159,0.99772044,3119.1,3118.6,3.20461796]
[1768217400457,0.99772044,3119.0,3118.6,3.20461796]
[1768217400647,0.99772044,3118.9,3118.6,3.20461796]
[1768217400845,2.87171704,3120.0,3119.0,0.16051]
[1768217401051,2.91771588,3120.8,3119.6,1.23485591]
[1768217401251,2.91771588,3120.8,3119.2,0.1605]
[1768217401252,3.21104438,3120.7,3119.2,0.1605]
[1768217401454,2.91523752,3120.7,3119.3,3.13885591]
[1768217401766,1.23733427,3120.8,3119.3,3.13885591]
[1768217401767,4.15009343,3120.6,3119.3,3.13885591]
[1768217403861,2.91523752,3120.5,3119.3,3.13885591]
[1768217404058,1.23485591,3120.4,3119.2,0.1605]
[1768217404262,2.71307998,3120.3,3119.2,0.1605]
[1768217404854,2.71307998,3120.3,3119.2,1.39535591]
[1768217407057,2.71307998,3120.3,3119.2,0.1605]
[1768217409465,2.71307998,3120.3,3119.2,1.39535591]
[1768217409962,2.71307998,3120.1,3118.8,1.23485591]
[1768217410164,2.71307998,3120.1,3119.0,1.905]
[1768217410661,2.71307998,3120.1,3119.0,3.13985591]
[1768217410961,2.71307998,3120.1,3119.2,1.23485591]
[1768217411162,2.71307998,3120.5,3119.4,1.23485591]
[1768217412265,2.71307998,3120.5,3119.2,1.23485591]
[1768217413166,2.8244753,3120.3,3119.2,1.23485591]
[1768217413367,0.97458657,3120.2,3119.0,1.905]
[1768217413568,0.97458657,3120.1,3119.0,1.905]
[1768217413865,0.97458657,3120.0,3119.0,1.905]
[1768217414066,0.97458657,3119.9,3118.9,2.06451]
[1768217414259,0.97458657,3119.8,3118.9,2.06451]
[1768217414469,0.97458657,3119.7,3118.9,2.06451]
[1768217414657,2.8244753,3120.1,3118.9,2.06451]
[1768217414859,0.9746066,3120.0,3118.9,2.06451]
[1768217415060,0.9746066,3119.9,3118.9,2.06451]
[1768217415259,0.9746066,3119.8,3118.9,2.06451]
[1768217415461,0.9746066,3119.7,3118.9,2.06451]
[1768217415661,2.8244753,3120.1,3118.9,2.06451]
[1768217415870,0.9746297,3120.0,3118.9,2.06451]
[1768217416065,0.9746297,3119.9,3118.9,2.06451]
[1768217416369,0.9746297,3119.8,3118.9,2.06451]
[1768217416567,0.9746297,3119.7,3118.9,2.06451]
[1768217416765,2.8244753,3120.5,3118.9,2.06451]
[1768217416968,0.97466309,3120.4,3118.9,2.06451]
[1768217417161,0.97466309,3120.3,3119.1,1.23520192]
[1768217417472,0.97466309,3120.2,3119.0,2.06351]
[1768217417669,0.97466309,3120.1,3119.0,2.06351]
[1768217417870,0.97466309,3120.0,3119.0,2.06351]
[1768217418071,0.97466309,3119.9,3119.0,2.06351]
[1768217418366,0.97466309,3119.8,3119.0,2.06351]
[1768217418573,2.8244753,3120.4,3119.0,2.06351]
[1768217421676,2.8244753,3120.4,3119.1,0.16051]
[1768217423076,2.8244753,3120.4,3119.2,1.23520192]
[1768217423574,2.8244753,3120.4,3119.3,0.16049]
[1768217430579,0.96674372,3120.3,3119.3,0.16049]
[1768217430780,0.96674372,3120.2,3119.3,0.16049]
[1768217431085,0.96674372,3120.1,3119.3,0.16049]
[1768217431286,0.96674372,3120.0,3119.3,0.16049]
[1768217431487,0.96674372,3119.9,3119.3,0.16049]
[1768217431688,0.96674372,3119.8,3119.3,0.16049]